bitfinex/quotes_SOLUSD_20240726
["timestamp","ask_amount","ask_price","bid_price","bid_amount"]
[1722025303363,38.523,182.39,182.34,5.4839]
[1722025303544,38.523,182.39,182.33,19.1952]
[1722025303746,5.4831,182.38,182.33,19.1952]
[1722025304263,5.4831,182.38,182.34,5.4841]
[1722025304633,5.4827,182.4,182.34,5.4841]
[1722025304830,45.0,182.39,182.35,5.4839]
[1722025305059,50.4827,182.39,182.35,5.4839]
[1722025306541,5.4833,182.37,182.33,13.7108]
[1722025306871,5.4833,182.38,182.33,19.1952]
[1722025307054,45.0,182.37,182.33,19.1952]
[1722025307646,50.4834,182.37,182.33,19.1952]
[1722025307948,50.4834,182.37,182.33,13.7108]
[1722025309288,45.0,182.37,182.33,13.7108]
[1722025309456,5.483,182.39,182.34,5.4841]
[1722025309642,50.4831,182.38,182.33,19.1952]
[1722025309841,45.0,182.38,182.34,5.4841]
[1722025310669,5.4824,182.4,182.35,5.4838]
[1722025310867,45.0,182.39,182.35,5.4838]
[1722025313061,33.04,182.42,182.37,5.4833]
[1722025313062,5.4821,182.42,182.37,5.4833]
[1722025313268,5.4822,182.41,182.36,19.1922]
[1722025313642,5.4824,182.4,182.36,13.7088]
[1722025314061,33.04,182.42,182.32,13.7115]
[1722025314062,5.4829,182.39,182.32,13.7115]
[1722025314671,5.4829,182.39,182.34,5.484]
[1722025315846,5.4824,182.4,182.35,5.4839]
[1722025316048,45.0,182.39,182.35,5.4839]
[1722025316673,33.04,182.42,182.36,5.4834]
[1722025316843,45.0,182.41,182.36,5.4834]
[1722025317046,5.4821,182.41,182.36,5.4834]
[1722025317245,5.4825,182.4,182.35,5.4838]
[1722025317456,50.4825,182.4,182.35,5.4838]
[1722025317776,5.4825,182.4,182.35,5.4838]
[1722025319079,5.4828,182.39,182.34,19.9934]
[1722025319257,5.4828,182.39,182.34,19.1942]
[1722025319856,5.4823,182.41,182.34,13.7101]
[1722025320051,45.0,182.4,182.36,5.4835]
[1722025322083,50.4825,182.4,182.36,5.4835]
[1722025322254,45.0,182.4,182.34,13.7101]
[1722025322562,78.04,182.41,182.34,13.7101]
[1722025323384,5.4828,182.39,182.34,19.1943]
[1722025324277,5.4828,182.39,182.35,5.4839]
[1722025324677,5.4824,182.4,182.35,5.4839]
[1722025324867,45.0,182.39,182.35,5.4839]
[1722025325072,18.5022,182.41,182.35,13.02]
[1722025325484,18.5022,182.41,182.36,1.09656647]
[1722025325973,5.4822,182.41,182.36,6.58006647]
[1722025326183,18.5022,182.41,182.36,6.58006647]
[1722025326664,18.5022,182.41,182.36,5.4835]
[1722025328285,5.4825,182.4,182.36,5.4835]
[1722025328585,5.4825,182.4,182.35,18.5038]
[1722025330785,5.4825,182.4,182.36,18.5035]
[1722025331084,5.4825,182.4,182.36,5.4835]
[1722025331282,5.4825,182.4,182.35,18.5038]
[1722025331991,5.4825,182.4,182.36,18.5036]
[1722025332583,5.4821,182.41,182.36,18.5036]
[1722025332962,5.4821,182.41,182.37,13.02]
[1722025333364,0.7852114,182.44,182.43,5.4815]
[1722025333581,0.7852114,182.44,182.43,18.5015]
[1722025335488,0.7852114,182.44,182.43,5.4815]
[1722025336466,0.7852114,182.44,182.42,13.7042]
[1722025336685,0.7852114,182.44,182.4,13.02]
[1722025337473,0.7852114,182.44,182.43,5.4815]
[1722025338194,0.7852114,182.44,182.41,13.7049]
[1722025338503,19.2864114,182.44,182.41,13.7049]
[1722025338785,13.02,182.43,182.39,5.4824]
[1722025338982,6.2664114,182.44,182.39,5.4824]
[1722025339185,50.4815,182.43,182.38,13.7073]
[1722025339403,45.0,182.43,182.35,13.7098]
[1722025339590,5.482,182.42,182.37,5.4833]
[1722025339790,45.0,182.41,182.37,5.4833]
[1722025340292,45.0,182.41,182.38,5.4829]
[1722025340876,45.0,182.41,182.37,5.4833]
[1722025341785,45.0,182.41,182.38,5.483]
[1722025343590,0.7852114,182.44,182.41,5.4821]
[1722025344091,0.7852114,182.44,182.38,13.7073]
[1722025344092,0.7852114,182.44,182.42,5.4818]
[1722025344792,0.7852114,182.44,182.41,5.4821]
[1722025345292,0.7852114,182.44,182.4,19.1878]
[1722025345676,5.4818,182.43,182.38,5.4827]
[1722025345869,45.0,182.42,182.38,5.4827]
[1722025346062,50.4818,182.42,182.37,5.4832]
[1722025346595,45.0,182.42,182.38,5.4829]
[1722025346905,5.4821,182.41,182.36,19.1918]
[1722025347097,50.4824,182.4,182.36,13.7084]
[1722025347274,5.4828,182.39,182.34,5.4842]
[1722025347988,5.4825,182.4,182.34,13.7099]
[1722025348193,45.0,182.39,182.34,13.7099]
[1722025348376,45.0,182.39,182.3,42.9232]
[1722025348377,5.4818,182.42,182.37,5.4831]
[1722025348565,45.0,182.41,182.36,13.7086]
[1722025348765,83.5221,182.41,182.36,13.7086]
[1722025348988,45.0,182.41,182.38,5.483]
[1722025349201,45.0,182.42,182.38,5.483]
[1722025349670,45.0,182.42,182.36,13.7086]
[1722025349870,45.0,182.43,182.36,13.7086]
[1722025350088,45.0,182.43,182.38,5.4828]
[1722025350886,5.4824,182.41,182.36,13.7086]
[1722025351197,45.0,182.4,182.36,13.7086]
[1722025351490,98.04,182.43,182.36,13.7086]
[1722025351688,5.4822,182.41,182.36,19.1922]
[1722025351901,45.0,182.4,182.36,19.1922]
[1722025352373,45.0,182.4,182.37,5.4833]
[1722025357378,33.04,182.43,182.38,5.4828]
[1722025357379,38.5217,182.43,182.38,5.4828]
[1722025357777,45.0,182.42,182.38,5.4828]
[1722025360602,78.04,182.42,182.36,19.192]
[1722025361092,13.02,182.4,182.36,19.192]
[1722025361287,45.0,182.39,182.36,19.192]
[1722025362896,33.04,182.42,182.36,19.192]
[1722025362897,29.38686989,182.44,182.37,22.1144]
[1722025363096,22.40686989,182.44,182.41,5.4819]
[1722025363283,9.38686989,182.44,182.41,5.4819]
[1722025363483,22.40686989,182.44,182.41,5.4819]
[1722025364204,22.40686989,182.44,182.41,26.7248]
[1722025364205,0.7852114,182.44,182.41,26.7248]
[1722025364391,0.7852114,182.44,182.43,5.4815]
[1722025366193,0.7852114,182.44,182.41,13.7048]
[1722025366399,0.7852114,182.44,182.43,5.4815]
[1722025396956,13.7852114,182.44,182.38,13.7074]
[1722025397245,0.7852114,182.44,182.43,5.4815]
[1722025399327,0.7852114,182.44,182.43,6.57767865]
[1722025399521,0.7852114,182.44,182.43,5.4815]
[1722025403454,0.7852114,182.44,182.42,19.1858]
[1722025403633,0.7852114,182.44,182.42,13.704]
[1722025403943,0.7852114,182.44,182.43,5.4815]
[1722025406132,0.7852114,182.44,182.42,19.1857]
[1722025407847,0.7852114,182.44,182.43,5.4815]
[1722025409650,0.7852114,182.44,182.4,5.4823]
[1722025409826,13.0,182.43,182.39,13.7068]
[1722025410346,58.7852114,182.44,182.4,5.4822]
[1722025410757,13.0,182.43,182.4,5.4822]
[1722025411626,18.4816,182.43,182.39,13.7068]
[1722025411832,13.0,182.43,182.39,19.1894]
[1722025412329,13.0,182.43,182.4,5.4823]
[1722025418364,13.0,182.43,182.39,19.1895]
[1722025419745,0.7852114,182.44,182.42,5.4818]
[1722025420656,0.7852114,182.44,182.39,13.0]
[1722025420848,13.7852114,182.44,182.35,27.4193]
[1722025421361,13.7852114,182.44,182.38,13.0]
[1722025422069,13.7852114,182.44,182.41,5.4821]
[1722025430942,0.7852114,182.44,182.41,5.4821]
[1722025431168,13.7852114,182.44,182.41,5.4821]
[1722025431854,6.2665114,182.44,182.39,19.1893]
[1722025432068,6.2665114,182.44,182.39,19.1894]
[1722025432069,13.0,182.43,182.39,19.1894]
[1722025432853,13.0,182.43,182.4,5.4824]
[1722025435671,13.0,182.42,182.39,13.7068]
[1722025436163,18.4816,182.43,182.39,19.1895]
[1722025436468,13.0,182.43,182.39,19.1895]
[1722025437243,19.2665114,182.44,182.4,5.4823]
[1722025437666,13.0,182.43,182.4,5.4823]
[1722025438168,0.7852114,182.44,182.4,5.4823]
[1722025438343,13.0,182.43,182.4,5.4823]
[1722025438663,13.0,182.43,182.39,19.1895]
[1722025439578,6.2664114,182.44,182.39,19.1895]
[1722025439872,19.2664114,182.44,182.39,19.1895]
[1722025440055,19.2664114,182.44,182.4,5.4824]
[1722025440755,19.2664114,182.44,182.39,19.1895]
[1722025440958,18.4817,182.43,182.39,13.7068]
[1722025443779,13.0,182.4,182.35,13.7094]
[1722025444155,18.4825,182.4,182.35,19.1932]
[1722025445353,5.4828,182.39,182.35,19.1932]
[1722025449756,18.4825,182.4,182.35,19.1932]
[1722025453276,18.4825,182.4,182.35,32.1932]
[1722025453491,5.4825,182.4,182.35,32.1932]
[1722025454683,5.4825,182.4,182.36,5.4836]
[1722025455664,18.4822,182.41,182.36,5.4836]
[1722025455865,45.0,182.4,182.36,5.4836]
[1722025456790,50.4824,182.4,182.36,5.4836]
[1722025460179,50.4824,182.4,182.35,32.1933]
[1722025460387,50.4824,182.4,182.35,19.1933]
[1722025462083,13.0,182.39,182.34,5.4842]
[1722025462282,13.0,182.37,182.32,13.7117]
[1722025462660,13.0,182.37,182.33,5.4843]
[1722025463861,63.4831,182.38,182.33,5.4843]
[1722025464283,63.4831,182.38,182.34,5.4842]
[1722025465488,18.4833,182.37,182.32,13.7117]
[1722025465683,45.0,182.36,182.32,13.7117]
[1722025466364,45.0,182.36,182.32,19.1964]
[1722025467168,58.0,182.36,182.32,19.1964]
[1722025467374,45.0,182.36,182.32,19.1964]
[1722025467663,5.4839,182.35,182.3,7.50648584]
[1722025467858,13.0,182.35,182.3,2.02128584]
[1722025468070,13.0,182.35,182.29,43.0665]
[1722025469079,50.4837,182.36,182.31,5.485]
[1722025469395,13.0,182.35,182.31,5.485]
[1722025470493,50.4837,182.36,182.31,5.485]
[1722025470688,13.0,182.35,182.31,5.485]
[1722025471895,45.0,182.36,182.31,26.7122]
[1722025473094,45.0,182.36,182.33,5.4845]
[1722025473293,28.8599,182.4,182.33,5.4845]
[1722025473294,15.1534,182.4,182.34,5.4841]
[1722025473493,13.0,182.38,182.34,5.4841]
[1722025473987,18.4831,182.38,182.33,19.1953]
[1722025474789,45.0,182.37,182.33,19.1953]
[1722025475380,45.0,182.37,182.34,13.0]
[1722025475987,45.0,182.37,182.33,19.1953]
[1722025476191,45.0,182.37,182.33,32.1953]
[1722025476370,5.4834,182.37,182.33,32.1953]
[1722025476565,5.4838,182.36,182.32,5.4848]
[1722025476777,5.4838,182.36,182.32,18.4848]
[1722025477275,5.4834,182.37,182.32,18.4848]
[1722025477477,45.0,182.36,182.32,18.4848]
[1722025477681,45.0,182.36,182.33,13.0]
[1722025480994,48.1234,182.4,182.34,5.4842]
[1722025480995,5.4831,182.38,182.34,5.4842]
[1722025481202,13.0,182.4,182.34,18.4842]
[1722025481379,5.483,182.39,182.34,18.4842]
[1722025481579,5.4836,182.37,182.32,13.7116]
[1722025481783,5.4837,182.36,182.32,19.1964]
[1722025482025,5.4837,182.36,182.32,32.1964]
[1722025482201,5.4834,182.37,182.32,32.1964]
[1722025482906,5.4837,182.36,182.32,32.1964]
[1722025484603,5.4834,182.37,182.32,32.1964]
[1722025486403,5.4834,182.37,182.33,5.4844]
[1722025486601,5.4834,182.37,182.32,19.1964]
[1722025486904,5.4841,182.35,182.3,18.4853]
[1722025487502,5.4841,182.35,182.3,5.4853]
[1722025487675,45.0,182.34,182.3,18.4853]
[1722025488084,45.0,182.34,182.3,5.4853]
[1722025488501,45.0,182.34,182.31,5.4851]
[1722025488979,50.4844,182.34,182.29,19.1996]
[1722025489302,45.0,182.34,182.32,13.0]
[1722025489479,32.97,182.38,182.31,19.1972]
[1722025489480,50.484,182.35,182.31,19.1972]
[1722025489675,5.4848,182.32,182.28,11.7629]
[1722025489881,13.0,182.34,182.28,18.486]
[1722025490085,45.0,182.33,182.28,18.486]
[1722025490705,45.0,182.33,182.29,18.4856]
[1722025491201,5.4849,182.32,182.29,13.0]
[1722025492397,58.0,182.33,182.26,5.4865]
[1722025492579,5.4854,182.31,182.27,13.0]
[1722025493406,5.4855,182.3,182.26,5.4865]
[1722025493574,5.4855,182.3,182.25,5.4868]
[1722025493779,45.0,182.29,182.24,26.7179]
[1722025494086,5.4861,182.28,182.24,26.7179]
[1722025494280,45.0,182.27,182.21,13.7201]
[1722025494482,13.0,182.28,182.21,13.7201]
[1722025494781,5.4866,182.26,182.21,13.7201]
[1722025495103,5.4866,182.26,182.22,13.0]
[1722025495398,45.0,182.27,182.22,13.0]
[1722025495601,5.4867,182.26,182.22,13.0]
[1722025495810,5.4867,182.26,182.23,13.0]
[1722025495976,45.0,182.27,182.23,13.0]
[1722025496176,77.97,182.28,182.23,13.0]
[1722025496404,83.456,182.28,182.23,13.0]
[1722025497023,83.456,182.28,182.23,18.4873]
[1722025501514,5.4864,182.27,182.23,5.4873]
[1722025501695,45.0,182.26,182.23,18.4873]
[1722025501892,45.0,182.26,182.23,5.4873]
[1722025502608,45.0,182.26,182.22,18.4877]
[1722025503115,45.0,182.26,182.23,5.4875]
[1722025503316,45.0,182.27,182.23,5.4875]
[1722025503798,45.0,182.27,182.23,18.4875]
[1722025506819,50.4863,182.27,182.23,18.4875]
[1722025509726,50.4863,182.27,182.23,5.4875]
[1722025510405,5.486,182.29,182.24,18.487]
[1722025511822,45.0,182.28,182.24,18.487]
[1722025513397,50.4861,182.28,182.24,18.487]
[1722025514321,50.4861,182.28,182.24,5.487]
[1722025516309,50.4861,182.28,182.23,32.2057]
[1722025517112,5.4857,182.3,182.25,18.4869]
[1722025517318,13.0,182.32,182.26,18.4865]
[1722025518129,5.4856,182.3,182.26,13.0]
[1722025520301,5.4856,182.3,182.26,18.4865]
[1722025520897,5.4856,182.3,182.26,13.0]
[1722025524705,5.4856,182.3,182.26,18.4865]
[1722025527325,5.4856,182.3,182.25,5.4869]
[1722025527630,5.4858,182.29,182.26,13.0]
[1722025527803,5.4858,182.29,182.25,18.4869]
[1722025528002,5.4858,182.29,182.25,5.4869]
[1722025530230,5.4858,182.29,182.25,18.4869]
[1722025530441,5.4855,182.3,182.25,18.4869]
[1722025531333,5.4855,182.3,182.26,5.4866]
[1722025532127,5.4855,182.3,182.25,13.0]
[1722025532128,58.0,182.29,182.25,5.4869]
[1722025532643,58.0,182.29,182.26,5.4866]
[1722025532927,45.0,182.29,182.26,5.4866]
[1722025538844,45.0,182.29,182.27,5.4863]
[1722025539350,45.0,182.29,182.26,5.4865]
[1722025539947,58.0,182.29,182.26,5.4865]
[1722025544826,38.4579,182.22,182.1,21.7409]
[1722025545027,13.0,182.19,182.13,13.0]
[1722025545236,45.97,182.19,182.13,13.0]
[1722025545425,5.4891,182.18,182.13,13.0]
[1722025545625,5.4894,182.17,182.1,21.7409]
[1722025545951,13.0,182.16,182.11,13.7277]
[1722025546124,13.0,182.15,182.11,13.7277]
[1722025546630,18.49,182.15,182.11,13.7277]
[1722025546841,51.46,182.15,182.11,13.7277]
[1722025547144,32.97,182.14,182.06,22.7285]
[1722025547347,13.0,182.12,182.06,22.7285]
[1722025547528,13.0,182.12,182.08,5.492]
[1722025547932,13.0,182.12,182.06,35.7285]
[1722025547933,13.0,182.12,182.07,5.4923]
[1722025548334,5.4908,182.13,182.07,18.4923]
[1722025548536,32.97,182.15,182.11,5.491]
[1722025548744,32.97,182.15,182.11,18.491]
[1722025549555,51.4593,182.18,182.12,18.4907]
[1722025549739,51.4593,182.18,182.13,13.0]
[1722025549936,5.4894,182.17,182.13,13.0]
[1722025550356,14.10284122,182.17,182.13,13.0]
[1722025550532,47.07284122,182.17,182.13,13.0]
[1722025550935,60.07284122,182.17,182.11,18.4911]
[1722025551546,5.4897,182.16,182.11,18.4911]
[1722025551953,5.49,182.15,182.11,13.0]
[1722025552163,5.49,182.15,182.1,18.4914]
[1722025553036,5.49,182.15,182.11,13.0]
[1722025553644,5.49,182.15,182.1,5.4914]
[1722025553958,5.4903,182.14,182.1,13.0]
[1722025554273,5.4903,182.14,182.09,32.221]
[1722025555838,18.4905,182.13,182.09,13.7293]
[1722025556055,5.4909,182.12,182.07,18.4921]
[1722025556931,18.4909,182.12,182.07,5.4921]
[1722025557129,18.4909,182.12,182.06,30.2522]
[1722025557130,18.4915,182.1,182.06,13.7315]
[1722025557432,18.4915,182.1,182.06,19.2241]
[1722025557638,5.4921,182.08,182.03,32.2272]
[1722025558445,5.4921,182.08,182.04,5.4932]
[1722025558733,32.97,182.1,182.04,5.4932]
[1722025558950,18.4917,182.09,182.04,5.4932]
[1722025559662,13.0,182.08,182.04,5.4932]
[1722025560160,18.4921,182.08,182.04,5.4932]
[1722025560460,18.4921,182.08,182.03,19.2272]
[1722025560762,13.0,182.07,182.03,19.2272]
[1722025560957,18.4921,182.08,182.03,19.2272]
[1722025561162,5.4921,182.08,182.04,5.4932]
[1722025561966,38.4618,182.09,182.04,5.4932]
[1722025562144,51.4618,182.09,182.04,5.4932]
[1722025562548,5.4915,182.1,182.05,5.4929]
[1722025562754,5.4912,182.11,182.06,13.0]
[1722025562953,32.97,182.14,182.08,13.0]
[1722025563164,5.4905,182.14,182.09,18.4917]
[1722025563369,13.0,182.13,182.08,13.0]
[1722025563548,5.491,182.12,182.07,32.2225]
[1722025564766,32.97,182.14,182.08,13.0]
[1722025564975,5.4902,182.15,182.11,13.0]
[1722025565178,14.10304122,182.17,182.13,13.0]
[1722025565380,5.4896,182.17,182.13,13.0]
[1722025565542,5.489,182.18,182.13,18.4904]
[1722025565968,5.489,182.18,182.14,13.0]
[1722025566167,5.4884,182.21,182.16,18.4896]
[1722025566674,5.4884,182.21,182.16,5.4896]
[1722025566675,18.4884,182.21,182.16,5.4896]
[1722025567173,5.4887,182.19,182.14,26.7256]
[1722025567668,13.0,182.19,182.13,13.0]
[1722025567873,13.0,182.19,182.12,13.0]
[1722025568054,13.0,182.19,182.13,5.4904]
[1722025568373,13.0,182.19,182.13,18.4904]
[1722025569148,5.489,182.18,182.13,18.4904]
[1722025569789,18.489,182.18,182.13,5.4904]
[1722025572953,13.0,182.18,182.14,5.4902]
[1722025573377,18.4888,182.19,182.14,5.4902]
[1722025574784,13.0,182.18,182.14,5.4902]
[1722025575377,18.4888,182.19,182.14,5.4902]
[1722025575862,5.489,182.18,182.14,5.4902]
[1722025576193,18.489,182.18,182.14,5.4902]
[1722025581282,18.489,182.18,182.12,18.4905]
[1722025581463,5.4894,182.17,182.12,5.4905]
[1722025581985,18.4894,182.17,182.12,5.4905]
[1722025582362,5.4894,182.17,182.12,5.4905]
[1722025583481,5.4894,182.17,182.13,5.4905]
[1722025587104,5.4894,182.17,182.12,5.4908]
[1722025588371,18.4894,182.17,182.12,5.4908]
[1722025589375,18.4903,182.14,182.09,26.8959]
[1722025589578,13.0,182.13,182.09,20.7341]
[1722025589779,18.4906,182.13,182.09,20.7341]
[1722025590091,18.4906,182.13,182.09,15.2425]
[1722025591698,18.4906,182.13,182.09,20.7342]
[1722025593473,32.97,182.15,182.09,20.7342]
[1722025593474,18.4903,182.14,182.09,20.7342]
[1722025593672,32.97,182.18,182.11,13.0]
[1722025593896,5.4896,182.16,182.12,5.4906]
[1722025594272,18.4894,182.17,182.12,5.4906]
[1722025594773,5.4894,182.17,182.12,18.4906]
[1722025595373,45.97,182.18,182.12,18.4906]
[1722025595374,5.4896,182.16,182.12,18.4906]
[1722025596398,5.4896,182.16,182.12,13.0]
[1722025598303,5.49,182.15,182.12,13.0]
[1722025599798,5.4902,182.14,182.11,13.0]
[1722025600007,5.4906,182.13,182.1,13.0]
[1722025600895,5.4906,182.13,182.09,33.7341]
[1722025602214,5.4899,182.15,182.11,13.0]
[1722025603004,5.4897,182.16,182.11,18.4909]
[1722025603188,5.49,182.15,182.11,18.4909]
[1722025604000,32.97,182.2,182.13,13.0]
[1722025604307,5.4893,182.18,182.14,13.0]
[1722025605207,32.97,182.22,182.16,13.0]
[1722025605398,5.4884,182.2,182.16,13.0]
[1722025605599,5.4882,182.21,182.16,18.4896]
[1722025605804,32.97,182.25,182.17,18.4893]
[1722025605805,5.4878,182.23,182.17,18.4893]
[1722025605991,38.4572,182.25,182.19,13.0]
[1722025606192,13.0,182.25,182.19,18.4887]
[1722025606401,21.61066622,182.26,182.2,13.0]
[1722025606997,21.61066622,182.26,182.2,19.5860051]
[1722025607203,5.4872,182.24,182.2,13.0]
[1722025607395,5.4872,182.24,182.19,18.4887]
[1722025607796,5.4876,182.23,182.19,13.0]
[1722025607996,5.4876,182.23,182.18,24.7052]
[1722025608303,5.4884,182.21,182.17,13.0]
[1722025609393,32.97,182.17,182.09,15.0601]
[1722025609806,13.0,182.14,182.09,15.0601]
[1722025610507,5.4908,182.13,182.09,15.0601]
[1722025611406,18.4908,182.13,182.09,15.0601]
[1722025614805,13.0,182.13,182.09,20.5518]
[1722025615008,18.4902,182.15,182.1,5.4914]
[1722025616811,5.4902,182.15,182.11,5.4911]
[1722025617019,18.4902,182.15,182.11,5.4911]
[1722025617524,5.4902,182.15,182.11,5.4911]
[1722025617720,5.4902,182.15,182.09,41.7889]
[1722025617921,18.4896,182.17,182.12,5.4907]
[1722025618106,5.4897,182.16,182.12,5.4907]
[1722025618901,18.4897,182.16,182.12,5.4907]
[1722025619219,18.4897,182.16,182.11,19.2185]
[1722025619910,5.4893,182.17,182.12,5.4906]
[1722025620224,18.4894,182.17,182.12,5.4906]
[1722025620801,5.4897,182.16,182.12,5.4906]
[1722025620997,18.4897,182.16,182.12,5.4906]
[1722025621318,18.4897,182.16,182.11,32.2185]
[1722025621524,18.4897,182.16,182.11,19.2185]
[1722025623006,32.97,182.19,182.11,13.7274]
[1722025623228,13.0,182.17,182.12,5.4906]
[1722025624100,5.4897,182.16,182.11,32.2185]
[1722025624319,5.4893,182.17,182.12,18.4908]
[1722025624523,32.97,182.2,182.13,13.7257]
[1722025624723,32.97,182.2,182.15,13.0]
[1722025625025,5.4888,182.19,182.15,13.0]
[1722025625219,5.4885,182.2,182.15,18.4898]
[1722025625421,45.97,182.22,182.16,13.0]
[1722025625608,32.97,182.24,182.16,13.0]
[1722025625813,13.0,182.22,182.16,13.0]
[1722025626028,5.4881,182.22,182.17,18.4893]
[1722025626227,5.4881,182.22,182.18,13.0]
[1722025626535,45.97,182.26,182.2,13.0]
[1722025627008,45.97,182.26,182.2,5.4883]
[1722025627330,13.0,182.25,182.2,5.4883]
[1722025627521,5.4873,182.24,182.19,18.4887]
[1722025628223,5.4876,182.23,182.18,18.489]
[1722025628928,5.4882,182.21,182.17,13.7228]
[1722025629709,5.4878,182.23,182.17,26.7228]
[1722025629912,18.4878,182.23,182.17,26.7228]
[1722025630110,45.0,182.22,182.17,26.7228]
[1722025630718,45.0,182.22,182.18,5.489]
[1722025630918,50.4879,182.22,182.17,32.2121]
[1722025633608,50.4879,182.22,182.18,5.489]
[1722025639116,50.4879,182.22,182.17,32.2121]
[1722025639314,63.4879,182.22,182.17,19.2121]
[1722025640853,50.4879,182.22,182.17,32.2121]
[1722025642638,63.4879,182.22,182.17,19.2121]
[1722025642815,5.4881,182.21,182.17,19.2121]
[1722025643315,63.4879,182.22,182.17,19.2121]
[1722025644942,18.4881,182.21,182.17,19.2121]
[1722025645245,58.0,182.2,182.17,19.2121]
[1722025645849,58.0,182.2,182.17,13.7228]
[1722025646528,45.0,182.2,182.17,26.7228]
[1722025647030,45.0,182.2,182.17,13.7228]
[1722025647352,45.0,182.2,182.18,5.489]
[1722025647552,5.4879,182.22,182.18,5.489]
[1722025647753,5.4879,182.22,182.17,19.212]
[1722025648137,18.4879,182.22,182.17,19.212]
[1722025648852,38.4575,182.23,182.18,5.4888]
[1722025649156,18.4879,182.22,182.17,19.2121]
[1722025650133,5.4883,182.21,182.17,13.7228]
[1722025650335,5.4883,182.21,182.17,19.2121]
[1722025651352,18.4883,182.21,182.17,19.2121]
[1722025651554,18.4883,182.21,182.17,13.7228]
[1722025652943,5.4883,182.21,182.17,13.7228]
[1722025653137,45.0,182.2,182.17,13.7228]
[1722025653850,45.0,182.2,182.16,18.4896]
[1722025654052,5.489,182.18,182.12,6.2214]
[1722025654246,18.4888,182.19,182.14,5.4902]
[1722025654447,5.4888,182.19,182.15,5.4899]
[1722025654662,5.4885,182.2,182.15,5.4899]
[1722025654851,63.4888,182.19,182.15,5.4899]
[1722025655165,18.4891,182.18,182.14,5.4902]
[1722025655864,13.0,182.18,182.14,5.4902]
[1722025658862,45.0,182.17,182.14,5.4902]
[1722025659060,58.0,182.17,182.14,5.4902]
[1722025659663,58.0,182.17,182.13,19.2165]
[1722025660339,18.4898,182.16,182.11,21.5004]
[1722025660540,58.0,182.15,182.11,5.4909]
[1722025661268,58.0,182.15,182.12,5.4908]
[1722025662237,45.0,182.15,182.12,5.4908]
[1722025664443,43.5,182.15,182.12,5.4908]
[1722025664642,5.4898,182.16,182.12,5.4908]
[1722025665165,13.0,182.18,182.13,5.4904]
[1722025665461,13.0,182.18,182.12,26.7266]
[1722025665670,13.0,182.18,182.08,6.1594]
[1722025665671,5.4901,182.15,182.1,13.0]
[1722025665860,18.4901,182.15,182.09,26.7292]
[1722025666170,18.4901,182.15,182.1,5.4913]
[1722025666371,5.4901,182.15,182.1,5.4913]
[1722025666557,5.4901,182.15,182.11,5.491]
[1722025667668,5.4903,182.14,182.1,18.4914]
[1722025668166,5.49,182.15,182.1,18.4914]
[1722025671856,18.49,182.15,182.1,18.4914]
[1722025672958,5.49,182.15,182.11,5.4911]
[1722025676371,5.49,182.15,182.1,18.4914]